[Event "Chessable Masters - Torneo preliminare"]
[White "Smirnov, Pavel"]
[Black "Maghsoodloo, Parham"]
[WhiteFideId "4123425"]
[BlackFideId "12539929"]
[WhiteElo "2470"]
[BlackElo "2660"]
[Result "1-0"]
[Round "2"]
[TimeControl "600+2"]
[Date "2023.03.13"]
[WhiteClock "0:00:31"]
[BlackClock "0:01:03"]

1. d4 {[%clk 0:08:05]}  Nf6 {[%clk 0:09:59]} 2. c4 {[%clk 0:08:05]}  e6 {[%clk 0:10:00]} 3. g3 {[%clk 0:08:06]}  d5 {[%clk 0:10:00]} 4. Nf3 {[%clk 0:08:06]}  Bb4+ {[%clk 0:09:55]} 5. Bd2 {[%clk 0:08:06]}  a5 {[%clk 0:09:51]} 6. Bg2 {[%clk 0:08:06]}  O-O {[%clk 0:09:52]} 7. Qc2 {[%clk 0:07:59]}  Nbd7 {[%clk 0:09:52]} 8. O-O {[%clk 0:07:59]}  c6 {[%clk 0:09:45]} 9. Rd1 {[%clk 0:07:48]}  Be7 {[%clk 0:09:37]} 10. Bf4 {[%clk 0:07:38]}  b6 {[%clk 0:09:07]} 11. Nbd2 {[%clk 0:07:36]}  Ba6 {[%clk 0:09:00]} 12. b3 {[%clk 0:07:34]}  Rc8 {[%clk 0:08:30]} 13. e4 {[%clk 0:07:34]}  c5 {[%clk 0:08:31]} 14. exd5 {[%clk 0:07:30]}  exd5 {[%clk 0:08:32]} 15. Rac1 {[%clk 0:07:31]}  cxd4 {[%clk 0:08:26]} 16. Nxd4 {[%clk 0:07:30]}  Ba3 {[%clk 0:08:27]} 17. Rb1 {[%clk 0:07:25]}  b5 {[%clk 0:08:13]} 18. Qf5 {[%clk 0:07:09]}  bxc4 {[%clk 0:08:14]} 19. bxc4 {[%clk 0:07:06]}  Bxc4 {[%clk 0:07:33]} 20. Nxc4 {[%clk 0:07:05]}  Rxc4 {[%clk 0:07:33]} 21. Bxd5 {[%clk 0:06:42]}  Nxd5 {[%clk 0:05:31]} 22. Qxd5 {[%clk 0:06:36]}  Qc8 {[%clk 0:05:14]} 23. Nb5 {[%clk 0:06:13]}  Nf6 {[%clk 0:05:12]} 24. Qf3 {[%clk 0:05:10]}  Bc5 {[%clk 0:04:52]} 25. Nd6 {[%clk 0:04:54]}  Bxd6 {[%clk 0:04:49]} 26. Bxd6 {[%clk 0:04:55]}  Re8 {[%clk 0:04:50]} 27. Rb8 {[%clk 0:04:48]}  Qe6 {[%clk 0:04:51]} 28. Rxe8+ {[%clk 0:02:51]}  Qxe8 {[%clk 0:04:51]} 29. Qf5 {[%clk 0:02:18]}  a4 {[%clk 0:04:29]} 30. Rb1 {[%clk 0:02:16]}  Rc8 {[%clk 0:04:15]} 31. Be5 {[%clk 0:02:11]}  Nd7 {[%clk 0:04:09]} 32. Bd4 {[%clk 0:02:05]}  Nf8 {[%clk 0:04:08]} 33. Qg4 {[%clk 0:01:55]}  Ne6 {[%clk 0:03:54]} 34. Re1 {[%clk 0:01:55]}  Qf8 {[%clk 0:03:55]} 35. Be5 {[%clk 0:01:48]}  a3 {[%clk 0:03:49]} 36. Qe4 {[%clk 0:01:43]}  h6 {[%clk 0:03:48]} 37. h4 {[%clk 0:01:18]}  Qd8 {[%clk 0:03:37]} 38. Kg2 {[%clk 0:01:12]}  Rc5 {[%clk 0:03:31]} 39. Re3 {[%clk 0:01:08]}  Ra5 {[%clk 0:03:02]} 40. Qf3 {[%clk 0:00:55]}  Ra4 {[%clk 0:02:50]} 41. Kh2 {[%clk 0:00:46]}  Qd2 {[%clk 0:02:36]} 42. Re2 {[%clk 0:00:47]}  Qd1 {[%clk 0:02:34]} 43. Re3 {[%clk 0:00:47]}  Qc2 {[%clk 0:02:04]} 44. Re2 {[%clk 0:00:45]}  Qc4 {[%clk 0:02:05]} 45. Rd2 {[%clk 0:00:42]}  Ra5 {[%clk 0:02:02]} 46. Bd6 {[%clk 0:00:32]}  Nd4 {[%clk 0:01:58]} 47. Qe4 {[%clk 0:00:29]}  Rd5 {[%clk 0:01:58]} 48. Bf4 {[%clk 0:00:24]}  f5 {[%clk 0:01:59]} 49. Qe3 {[%clk 0:00:17]}  Rd8 {[%clk 0:01:42]} 50. Qxa3 {[%clk 0:00:16]}  Qc6 {[%clk 0:01:43]} 51. Rd3 {[%clk 0:00:16]}  Kh7 {[%clk 0:01:31]} 52. Be5 {[%clk 0:00:16]}  Qc2 {[%clk 0:01:20]} 53. Bxd4 {[%clk 0:00:16]}  Rxd4 {[%clk 0:01:22]} 54. Rxd4 {[%clk 0:00:17]}  Qxf2+ {[%clk 0:01:23]} 55. Kh3 {[%clk 0:00:18]}  Qf1+ {[%clk 0:01:25]} 56. Kh2 {[%clk 0:00:18]}  Qf2+ {[%clk 0:01:26]} 57. Kh3 {[%clk 0:00:19]}  Qxd4 {[%clk 0:01:26]} 58. Qf3 {[%clk 0:00:19]}  Kg6 {[%clk 0:01:20]} 59. Qc6+ {[%clk 0:00:19]}  Kh7 {[%clk 0:01:21]} 60. Qf3 {[%clk 0:00:20]}  Qc5 {[%clk 0:01:14]} 61. a4 {[%clk 0:00:20]}  Kg6 {[%clk 0:01:14]} 62. g4 {[%clk 0:00:17]}  fxg4+ {[%clk 0:01:06]} 63. Qxg4+ {[%clk 0:00:19]}  Kf6 {[%clk 0:01:08]} 64. Qf4+ {[%clk 0:00:20]}  Ke6 {[%clk 0:01:08]} 65. Qe4+ {[%clk 0:00:20]}  Kd6 {[%clk 0:01:07]} 66. Qg6+ {[%clk 0:00:20]}  Kd5 {[%clk 0:00:50]} 67. Qf5+ {[%clk 0:00:21]}  Kc4 {[%clk 0:00:52]} 68. Qxc5+ {[%clk 0:00:21]}  Kxc5 {[%clk 0:00:53]} 69. h5 {[%clk 0:00:22]}  Kb4 {[%clk 0:00:55]} 70. Kg4 {[%clk 0:00:24]}  Kxa4 {[%clk 0:00:56]} 71. Kf5 {[%clk 0:00:25]}  Kb5 {[%clk 0:00:58]} 72. Kg6 {[%clk 0:00:27]}  Kc6 {[%clk 0:01:00]} 73. Kxg7 {[%clk 0:00:28]}  Kd7 {[%clk 0:01:02]} 74. Kxh6 {[%clk 0:00:30]}  Ke7 {[%clk 0:01:03]} 75. Kg7 {[%clk 0:00:31]} 1-0


[Site "Internet"]

[Event "Chessable Masters - Torneo preliminare"]
[White "Predke, Alexandr"]
[Black "Harikrishna, Pentala"]
[WhiteFideId "24107581"]
[BlackFideId "5007003"]
[WhiteElo "2582"]
[BlackElo "2627"]
[Result "1/2-1/2"]
[Round "2"]
[TimeControl "600+2"]
[Date "2023.03.13"]
[WhiteClock "0:05:55"]
[BlackClock "0:04:44"]

1. e4 {[%clk 0:10:01]}  c5 {[%clk 0:10:00]} 2. Nf3 {[%clk 0:10:02]}  e6 {[%clk 0:10:01]} 3. d4 {[%clk 0:09:56]}  cxd4 {[%clk 0:10:03]} 4. Nxd4 {[%clk 0:09:58]}  Nc6 {[%clk 0:10:04]} 5. Nc3 {[%clk 0:09:55]}  Qc7 {[%clk 0:10:05]} 6. Be2 {[%clk 0:09:29]}  Nf6 {[%clk 0:10:04]} 7. Ndb5 {[%clk 0:09:29]}  Qb8 {[%clk 0:10:04]} 8. f4 {[%clk 0:09:29]}  a6 {[%clk 0:09:29]} 9. e5 {[%clk 0:09:29]}  axb5 {[%clk 0:08:51]} 10. exf6 {[%clk 0:09:31]}  b4 {[%clk 0:08:13]} 11. fxg7 {[%clk 0:09:28]}  Bxg7 {[%clk 0:08:13]} 12. Nb5 {[%clk 0:09:29]}  d5 {[%clk 0:08:04]} 13. O-O {[%clk 0:09:28]}  Bd7 {[%clk 0:07:56]} 14. f5 {[%clk 0:08:51]}  Be5 {[%clk 0:07:23]} 15. Bh5 {[%clk 0:08:48]}  exf5 {[%clk 0:06:17]} 16. Qxd5 {[%clk 0:08:29]}  Bxh2+ {[%clk 0:05:07]} 17. Kh1 {[%clk 0:08:27]}  Qe5 {[%clk 0:05:01]} 18. Qxf7+ {[%clk 0:07:21]}  Kd8 {[%clk 0:05:01]} 19. Rd1 {[%clk 0:07:11]}  Nb8 {[%clk 0:04:37]} 20. Rd5 {[%clk 0:05:58]}  Qe1+ {[%clk 0:04:37]} 21. Kxh2 {[%clk 0:05:55]}  Qh4+ {[%clk 0:04:39]} 22. Kg1 {[%clk 0:05:52]}  Qe1+ {[%clk 0:04:41]} 23. Kh2 {[%clk 0:05:53]}  Qh4+ {[%clk 0:04:43]} 24. Kg1 {[%clk 0:05:54]}  Qe1+ {[%clk 0:04:44]} 25. Kh2 {[%clk 0:05:55]} 1/2-1/2


[Site "Internet"]

[Event "Chessable Masters - Torneo preliminare"]
[White "Weetik, Vjacheslav"]
[Black "Raja, Harshit"]
[WhiteFideId "4153472"]
[BlackFideId "5089000"]
[WhiteElo "2445"]
[BlackElo "2361"]
[Result "0-1"]
[Round "2"]
[TimeControl "600+2"]
[Date "2023.03.13"]
[WhiteClock "0:00:07"]
[BlackClock "0:00:31"]

1. d4 {[%clk 0:09:58]}  Nf6 {[%clk 0:10:01]} 2. c4 {[%clk 0:09:58]}  e6 {[%clk 0:10:02]} 3. g3 {[%clk 0:09:56]}  d5 {[%clk 0:10:03]} 4. Nf3 {[%clk 0:09:48]}  Be7 {[%clk 0:10:03]} 5. Bg2 {[%clk 0:09:49]}  O-O {[%clk 0:10:04]} 6. O-O {[%clk 0:09:50]}  dxc4 {[%clk 0:10:06]} 7. Qc2 {[%clk 0:09:51]}  b6 {[%clk 0:10:07]} 8. Nbd2 {[%clk 0:09:38]}  Bb7 {[%clk 0:10:03]} 9. Nxc4 {[%clk 0:09:29]}  Be4 {[%clk 0:10:03]} 10. Qd1 {[%clk 0:09:16]}  Nbd7 {[%clk 0:10:03]} 11. b3 {[%clk 0:08:57]}  c5 {[%clk 0:09:23]} 12. Bb2 {[%clk 0:08:44]}  Rc8 {[%clk 0:09:18]} 13. Rc1 {[%clk 0:08:23]}  cxd4 {[%clk 0:09:17]} 14. Qxd4 {[%clk 0:07:57]}  Bc5 {[%clk 0:08:54]} 15. Qd2 {[%clk 0:07:51]}  Qe7 {[%clk 0:08:53]} 16. Rfd1 {[%clk 0:06:49]}  Nd5 {[%clk 0:07:33]} 17. Qg5 {[%clk 0:06:29]}  N7f6 {[%clk 0:05:31]} 18. Nfe5 {[%clk 0:04:50]}  Bxg2 {[%clk 0:05:14]} 19. Kxg2 {[%clk 0:04:49]}  b5 {[%clk 0:04:19]} 20. Nd7 {[%clk 0:03:59]}  h6 {[%clk 0:03:24]} 21. Bxf6 {[%clk 0:03:15]}  Nxf6 {[%clk 0:03:18]} 22. Nxf6+ {[%clk 0:03:00]}  Qxf6 {[%clk 0:03:07]} 23. Qxf6 {[%clk 0:03:00]}  gxf6 {[%clk 0:03:09]} 24. Nd6 {[%clk 0:02:12]}  Bxd6 {[%clk 0:03:05]} 25. Rxc8 {[%clk 0:02:12]}  Rxc8 {[%clk 0:03:07]} 26. Rxd6 {[%clk 0:02:14]}  Rc2 {[%clk 0:02:52]} 27. Ra6 {[%clk 0:02:12]}  Rxe2 {[%clk 0:02:51]} 28. Rxa7 {[%clk 0:02:11]}  f5 {[%clk 0:02:44]} 29. Kf3 {[%clk 0:02:03]}  Rc2 {[%clk 0:02:40]} 30. Ke3 {[%clk 0:02:00]}  Kg7 {[%clk 0:02:37]} 31. b4 {[%clk 0:01:15]}  Kf6 {[%clk 0:01:56]} 32. a3 {[%clk 0:01:14]}  Rc3+ {[%clk 0:01:40]} 33. Kd4 {[%clk 0:01:01]}  Rc2 {[%clk 0:01:29]} 34. f4 {[%clk 0:00:43]}  h5 {[%clk 0:01:14]} 35. h4 {[%clk 0:00:36]}  Rc4+ {[%clk 0:01:10]} 36. Kd3 {[%clk 0:00:37]}  Rc1 {[%clk 0:01:07]} 37. Kd4 {[%clk 0:00:23]}  Rc4+ {[%clk 0:01:00]} 38. Kd3 {[%clk 0:00:24]}  Rc1 {[%clk 0:01:01]} 39. Kd4 {[%clk 0:00:13]}  Rc2 {[%clk 0:00:50]} 40. Ra5 {[%clk 0:00:11]}  Rd2+ {[%clk 0:00:44]} 41. Kc5 {[%clk 0:00:11]}  Rd3 {[%clk 0:00:43]} 42. Kxb5 {[%clk 0:00:11]}  Rxg3 {[%clk 0:00:44]} 43. Kc4 {[%clk 0:00:07]}  Rf3 {[%clk 0:00:44]} 44. b5 {[%clk 0:00:09]}  Rxf4+ {[%clk 0:00:45]} 45. Kc5 {[%clk 0:00:10]}  Rf1 {[%clk 0:00:41]} 46. b6 {[%clk 0:00:11]}  Rc1+ {[%clk 0:00:42]} 47. Kd6 {[%clk 0:00:12]}  Rb1 {[%clk 0:00:42]} 48. Kc6 {[%clk 0:00:13]}  f4 {[%clk 0:00:43]} 49. b7 {[%clk 0:00:13]}  f3 {[%clk 0:00:44]} 50. Rb5 {[%clk 0:00:11]}  Rxb5 {[%clk 0:00:45]} 51. Kxb5 {[%clk 0:00:13]}  f2 {[%clk 0:00:46]} 52. b8=Q {[%clk 0:00:14]}  f1=Q+ {[%clk 0:00:48]} 53. Ka5 {[%clk 0:00:11]}  Qe1+ {[%clk 0:00:45]} 54. Qb4 {[%clk 0:00:08]}  Qe5+ {[%clk 0:00:44]} 55. Kb6 {[%clk 0:00:09]}  Qb8+ {[%clk 0:00:41]} 56. Kc6 {[%clk 0:00:08]}  Qc8+ {[%clk 0:00:38]} 57. Kb6 {[%clk 0:00:09]}  e5 {[%clk 0:00:36]} 58. a4 {[%clk 0:00:08]}  Qb8+ {[%clk 0:00:37]} 59. Kc5 {[%clk 0:00:09]}  Qxb4+ {[%clk 0:00:28]} 60. Kxb4 {[%clk 0:00:10]}  Ke6 {[%clk 0:00:29]} 61. Kc5 {[%clk 0:00:08]}  Kd7 {[%clk 0:00:29]} 62. Kd5 {[%clk 0:00:06]}  f6 {[%clk 0:00:30]} 63. a5 {[%clk 0:00:07]}  Kc7 {[%clk 0:00:31]} 0-1


[Site "Internet"]

[Event "Chessable Masters - Torneo preliminare"]
[White "Guseinov, Gadir"]
[Black "Van Foreest, Lucas"]
[WhiteFideId "13401378"]
[BlackFideId "1039792"]
[WhiteElo "2632"]
[BlackElo "2483"]
[Result "0-1"]
[Round "2"]
[TimeControl "600+2"]
[Date "2023.03.13"]
[WhiteClock "0:03:43"]
[BlackClock "0:08:05"]

1. e4 {[%clk 0:06:42]}  e5 {[%clk 0:09:59]} 2. Nf3 {[%clk 0:06:28]}  Nc6 {[%clk 0:09:59]} 3. d4 {[%clk 0:05:54]}  exd4 {[%clk 0:09:59]} 4. Bc4 {[%clk 0:05:54]}  Bb4+ {[%clk 0:09:28]} 5. c3 {[%clk 0:05:43]}  dxc3 {[%clk 0:09:30]} 6. O-O {[%clk 0:05:44]}  d6 {[%clk 0:09:28]} 7. Nxc3 {[%clk 0:05:35]}  Bxc3 {[%clk 0:09:20]} 8. bxc3 {[%clk 0:05:35]}  Nf6 {[%clk 0:09:21]} 9. Bg5 {[%clk 0:05:26]}  h6 {[%clk 0:09:22]} 10. Bh4 {[%clk 0:05:26]}  Bg4 {[%clk 0:09:16]} 11. h3 {[%clk 0:05:06]}  Bxf3 {[%clk 0:09:17]} 12. gxf3 {[%clk 0:05:00]}  g5 {[%clk 0:09:12]} 13. Bg3 {[%clk 0:05:01]}  O-O {[%clk 0:09:10]} 14. Rb1 {[%clk 0:04:54]}  Rb8 {[%clk 0:09:07]} 15. Re1 {[%clk 0:04:38]}  Nh5 {[%clk 0:09:07]} 16. Rb5 {[%clk 0:04:22]}  a6 {[%clk 0:08:33]} 17. Rd5 {[%clk 0:04:22]}  Qf6 {[%clk 0:08:21]} 18. Rf5 {[%clk 0:03:48]}  Qxc3 {[%clk 0:08:22]} 19. Bb3 {[%clk 0:03:42]}  Nxg3 {[%clk 0:08:10]} 20. fxg3 {[%clk 0:03:43]}  Nd4 {[%clk 0:08:05]} 0-1


[Site "Internet"]

[Event "Chessable Masters - Torneo preliminare"]
[White "Meier, Georg"]
[Black "Volkov, Sergey"]
[WhiteFideId "4675789"]
[BlackFideId "4122763"]
[WhiteElo "2624"]
[BlackElo "2496"]
[Result "1-0"]
[Round "2"]
[TimeControl "600+2"]
[Date "2023.03.13"]
[WhiteClock "0:01:20"]
[BlackClock "0:03:05"]

1. Nf3 {[%clk 0:10:01]}  d5 {[%clk 0:09:22]} 2. g3 {[%clk 0:10:03]}  c6 {[%clk 0:09:21]} 3. Bg2 {[%clk 0:10:04]}  Nf6 {[%clk 0:09:22]} 4. O-O {[%clk 0:10:04]}  Bg4 {[%clk 0:09:23]} 5. h3 {[%clk 0:10:05]}  Bxf3 {[%clk 0:09:24]} 6. Bxf3 {[%clk 0:10:07]}  Nbd7 {[%clk 0:09:25]} 7. d3 {[%clk 0:10:08]}  e5 {[%clk 0:09:23]} 8. e4 {[%clk 0:10:08]}  dxe4 {[%clk 0:09:23]} 9. dxe4 {[%clk 0:10:08]}  Bc5 {[%clk 0:09:24]} 10. Qe2 {[%clk 0:10:09]}  O-O {[%clk 0:09:23]} 11. Nd2 {[%clk 0:10:09]}  a5 {[%clk 0:09:23]} 12. a4 {[%clk 0:10:10]}  Qe7 {[%clk 0:09:20]} 13. Kg2 {[%clk 0:10:09]}  Rfd8 {[%clk 0:09:19]} 14. Rd1 {[%clk 0:10:06]}  Nf8 {[%clk 0:09:19]} 15. Nc4 {[%clk 0:10:07]}  Rxd1 {[%clk 0:09:19]} 16. Qxd1 {[%clk 0:10:07]}  N6d7 {[%clk 0:09:15]} 17. Bd2 {[%clk 0:10:06]}  Nb6 {[%clk 0:08:37]} 18. Qe2 {[%clk 0:09:03]}  Nxc4 {[%clk 0:08:29]} 19. Qxc4 {[%clk 0:09:04]}  h6 {[%clk 0:08:08]} 20. Bg4 {[%clk 0:08:54]}  Bd4 {[%clk 0:08:01]} 21. Rb1 {[%clk 0:08:40]}  Qf6 {[%clk 0:07:46]} 22. Be1 {[%clk 0:08:37]}  g6 {[%clk 0:07:41]} 23. h4 {[%clk 0:08:18]}  h5 {[%clk 0:07:41]} 24. Bh3 {[%clk 0:08:17]}  Kg7 {[%clk 0:07:38]} 25. b3 {[%clk 0:07:31]}  Nh7 {[%clk 0:07:26]} 26. Qe2 {[%clk 0:07:26]}  Qe7 {[%clk 0:07:23]} 27. Rd1 {[%clk 0:07:24]}  Nf6 {[%clk 0:07:17]} 28. Rd3 {[%clk 0:06:44]}  Qa3 {[%clk 0:07:07]} 29. Rf3 {[%clk 0:06:20]}  Qe7 {[%clk 0:06:38]} 30. Bd2 {[%clk 0:06:12]}  Ne8 {[%clk 0:06:29]} 31. Rd3 {[%clk 0:06:01]}  Nc7 {[%clk 0:06:23]} 32. c3 {[%clk 0:05:59]}  Bb6 {[%clk 0:06:16]} 33. Rd7 {[%clk 0:05:55]}  Qe8 {[%clk 0:06:16]} 34. Be3 {[%clk 0:05:36]}  Bxe3 {[%clk 0:05:50]} 35. Qxe3 {[%clk 0:05:23]}  Ne6 {[%clk 0:05:49]} 36. Rxb7 {[%clk 0:05:21]}  Rd8 {[%clk 0:05:49]} 37. b4 {[%clk 0:04:56]}  axb4 {[%clk 0:05:48]} 38. cxb4 {[%clk 0:04:58]}  Rd1 {[%clk 0:05:43]} 39. Qb3 {[%clk 0:04:33]}  Rd6 {[%clk 0:05:26]} 40. Bxe6 {[%clk 0:04:24]}  Rxe6 {[%clk 0:05:26]} 41. a5 {[%clk 0:04:24]}  Qc8 {[%clk 0:05:15]} 42. Rb6 {[%clk 0:04:02]}  Rd6 {[%clk 0:04:47]} 43. b5 {[%clk 0:03:47]}  Qg4 {[%clk 0:04:04]} 44. Qf3 {[%clk 0:03:10]}  Qxf3+ {[%clk 0:04:04]} 45. Kxf3 {[%clk 0:03:11]}  Rd3+ {[%clk 0:04:06]} 46. Ke2 {[%clk 0:03:09]}  Ra3 {[%clk 0:04:07]} 47. Rxc6 {[%clk 0:02:42]}  Rxa5 {[%clk 0:04:06]} 48. b6 {[%clk 0:02:39]}  Ra2+ {[%clk 0:03:56]} 49. Kd3 {[%clk 0:02:33]}  Rb2 {[%clk 0:03:27]} 50. Kc3 {[%clk 0:02:21]}  Rb1 {[%clk 0:03:25]} 51. Kc4 {[%clk 0:02:20]}  f5 {[%clk 0:03:16]} 52. exf5 {[%clk 0:01:37]}  gxf5 {[%clk 0:03:16]} 53. Kd5 {[%clk 0:01:39]}  e4 {[%clk 0:03:16]} 54. Kd6 {[%clk 0:01:37]}  Rb2 {[%clk 0:03:10]} 55. Kc7 {[%clk 0:01:38]}  Rxf2 {[%clk 0:03:01]} 56. b7 {[%clk 0:01:39]}  Rb2 {[%clk 0:03:02]} 57. b8=Q {[%clk 0:01:15]}  Rxb8 {[%clk 0:03:02]} 58. Kxb8 {[%clk 0:01:16]}  Kf7 {[%clk 0:03:03]} 59. Kc7 {[%clk 0:01:17]}  e3 {[%clk 0:03:03]} 60. Rc3 {[%clk 0:01:17]}  f4 {[%clk 0:03:03]} 61. gxf4 {[%clk 0:01:17]}  Kf6 {[%clk 0:03:04]} 62. Rxe3 {[%clk 0:01:18]}  Kf5 {[%clk 0:03:05]} 63. Rg3 {[%clk 0:01:18]}  Kxf4 {[%clk 0:03:06]} 64. Rg5 {[%clk 0:01:19]}  Ke3 {[%clk 0:03:05]} 65. Rxh5 {[%clk 0:01:20]} 1-0


[Site "Internet"]

[Event "Chessable Masters - Torneo preliminare"]
[White "Mekhitarian, Krikor Sevag"]
[Black "Kamsky, Gata"]
[WhiteFideId "2107660"]
[BlackFideId "2000024"]
[WhiteElo "2594"]
[BlackElo "2630"]
[Result "0-1"]
[Round "2"]
[TimeControl "600+2"]
[Date "2023.03.13"]
[WhiteClock "0:00:05"]
[BlackClock "0:00:42"]

1. Nf3 {[%clk 0:10:01]}  Nf6 {[%clk 0:09:59]} 2. c4 {[%clk 0:10:02]}  b6 {[%clk 0:09:58]} 3. g3 {[%clk 0:09:59]}  Bb7 {[%clk 0:09:59]} 4. Bg2 {[%clk 0:10:00]}  c5 {[%clk 0:10:00]} 5. O-O {[%clk 0:09:59]}  e6 {[%clk 0:10:01]} 6. Nc3 {[%clk 0:09:58]}  Be7 {[%clk 0:10:00]} 7. Re1 {[%clk 0:09:59]}  d5 {[%clk 0:09:02]} 8. cxd5 {[%clk 0:09:59]}  Nxd5 {[%clk 0:08:58]} 9. e4 {[%clk 0:10:00]}  Nxc3 {[%clk 0:08:53]} 10. bxc3 {[%clk 0:10:00]}  O-O {[%clk 0:08:50]} 11. d4 {[%clk 0:10:00]}  cxd4 {[%clk 0:08:51]} 12. cxd4 {[%clk 0:10:01]}  Nc6 {[%clk 0:08:22]} 13. Bb2 {[%clk 0:08:22]}  Bf6 {[%clk 0:08:20]} 14. Qa4 {[%clk 0:08:00]}  Rc8 {[%clk 0:08:13]} 15. Rad1 {[%clk 0:07:48]}  Na5 {[%clk 0:08:13]} 16. Ne5 {[%clk 0:07:39]}  Bxe5 {[%clk 0:08:03]} 17. dxe5 {[%clk 0:07:40]}  Qe8 {[%clk 0:08:00]} 18. Qb4 {[%clk 0:05:52]}  Nc4 {[%clk 0:07:53]} 19. Bd4 {[%clk 0:05:53]}  a5 {[%clk 0:07:44]} 20. Qb3 {[%clk 0:05:44]}  b5 {[%clk 0:07:45]} 21. Bf1 {[%clk 0:05:35]}  Qc6 {[%clk 0:07:37]} 22. Rc1 {[%clk 0:03:26]}  Rfd8 {[%clk 0:07:33]} 23. Bxc4 {[%clk 0:02:20]}  bxc4 {[%clk 0:07:22]} 24. Qe3 {[%clk 0:01:55]}  Rd7 {[%clk 0:07:02]} 25. f3 {[%clk 0:01:33]}  Rcd8 {[%clk 0:07:00]} 26. Bc3 {[%clk 0:01:34]}  Rd3 {[%clk 0:06:57]} 27. Qf2 {[%clk 0:01:35]}  a4 {[%clk 0:06:25]} 28. a3 {[%clk 0:01:31]}  h6 {[%clk 0:06:16]} 29. Bb4 {[%clk 0:01:17]}  c3 {[%clk 0:05:38]} 30. Rc2 {[%clk 0:01:05]}  Ba6 {[%clk 0:04:30]} 31. Re3 {[%clk 0:00:40]}  Rxe3 {[%clk 0:03:18]} 32. Qxe3 {[%clk 0:00:41]}  Qc4 {[%clk 0:03:19]} 33. Qe1 {[%clk 0:00:21]}  Rd3 {[%clk 0:02:44]} 34. Rxc3 {[%clk 0:00:20]}  Qd4+ {[%clk 0:02:44]} 35. Kg2 {[%clk 0:00:17]}  Rd2+ {[%clk 0:02:43]} 36. Kh3 {[%clk 0:00:17]}  Re2 {[%clk 0:02:43]} 37. Qh1 {[%clk 0:00:05]}  Qxe5 {[%clk 0:02:26]} 38. Rc5 {[%clk 0:00:06]}  Qb2 {[%clk 0:02:25]} 39. Qg1 {[%clk 0:00:06]}  Rxh2+ {[%clk 0:02:22]} 40. Kg4 {[%clk 0:00:03]}  Kh7 {[%clk 0:01:18]} 41. Ra5 {[%clk 0:00:04]}  Bd3 {[%clk 0:00:48]} 42. Bc3 {[%clk 0:00:04]}  f5+ {[%clk 0:00:44]} 43. Kf4 {[%clk 0:00:04]}  Qxc3 {[%clk 0:00:42]} 44. Qxh2 {[%clk 0:00:05]}  Qxa5 {[%clk 0:00:42]} 0-1


[Site "Internet"]

[Event "Chessable Masters - Torneo preliminare"]
[White "Sankalp, Gupta"]
[Black "Drozdowski, Kacper"]
[WhiteFideId "5097010"]
[BlackFideId "1136720"]
[WhiteElo "2427"]
[BlackElo "2472"]
[Result "0-1"]
[Round "2"]
[TimeControl "600+2"]
[Date "2023.03.13"]
[WhiteClock "0:00:11"]
[BlackClock "0:04:17"]

1. Nf3 {[%clk 0:09:59]}  d5 {[%clk 0:09:58]} 2. c4 {[%clk 0:09:55]}  c6 {[%clk 0:09:58]} 3. e3 {[%clk 0:09:56]}  Nf6 {[%clk 0:09:59]} 4. Nc3 {[%clk 0:09:57]}  a6 {[%clk 0:09:58]} 5. d4 {[%clk 0:09:54]}  b5 {[%clk 0:09:52]} 6. cxd5 {[%clk 0:09:53]}  cxd5 {[%clk 0:09:52]} 7. Bd3 {[%clk 0:09:54]}  Bb7 {[%clk 0:09:42]} 8. O-O {[%clk 0:09:52]}  e6 {[%clk 0:09:43]} 9. a4 {[%clk 0:09:41]}  b4 {[%clk 0:09:43]} 10. Nb1 {[%clk 0:09:38]}  Bd6 {[%clk 0:09:39]} 11. a5 {[%clk 0:09:34]}  Nc6 {[%clk 0:09:25]} 12. Qa4 {[%clk 0:09:34]}  O-O {[%clk 0:09:25]} 13. Nbd2 {[%clk 0:09:36]}  Qe7 {[%clk 0:09:11]} 14. Nb3 {[%clk 0:09:30]}  e5 {[%clk 0:09:10]} 15. dxe5 {[%clk 0:09:17]}  Nxe5 {[%clk 0:09:12]} 16. Nxe5 {[%clk 0:09:17]}  Qxe5 {[%clk 0:09:11]} 17. f4 {[%clk 0:09:10]}  Qe7 {[%clk 0:08:40]} 18. Bd2 {[%clk 0:09:09]}  Rac8 {[%clk 0:07:14]} 19. Rac1 {[%clk 0:09:06]}  Rxc1 {[%clk 0:07:13]} 20. Rxc1 {[%clk 0:06:17]}  Ng4 {[%clk 0:07:11]} 21. g3 {[%clk 0:02:20]}  Nxe3 {[%clk 0:06:47]} 22. Nd4 {[%clk 0:02:08]}  Nc4 {[%clk 0:05:55]} 23. Nf5 {[%clk 0:00:43]}  Bc5+ {[%clk 0:05:43]} 24. Kg2 {[%clk 0:00:36]}  Qf6 {[%clk 0:05:31]} 25. Rc2 {[%clk 0:00:25]}  Bc8 {[%clk 0:04:40]} 26. Nh4 {[%clk 0:00:11]}  Qd4 {[%clk 0:04:32]} 27. Bxc4 {[%clk 0:00:11]}  Qg1+ {[%clk 0:04:17]} 28. Kf3 {[%clk 0:00:11]}  Qf2# {[%clk 0:04:17]} 0-1


[Site "Internet"]